[Event "European Corporate Championship 2022"]
[Site "Rotterdam"]
[Date "2022.06.18"]
[Round "1.11"]
[White "IJzermans, Ger"]
[Black "IJzermans, Cees"]
[Result "1/2-1/2"]
[ECO "A04"]
[WhiteElo "1404"]
[BlackElo "2115"]
[Annotator "NA RC"]
[PlyCount "126"]
[EventDate "2022.06.18"]
[EventType "team-tourn"]
[EventCountry "NED"]
[SourceTitle "playchess.com"]
[Source "ChessBase"]
[SourceQuality "1"]
[TimeControl "900+5"]

1. Nf3 {[%emt 0:00:04]} g5 {[%emt 0:00:08]} 2. d4 {[%emt 0:00:08]} g4 {[%emt 0:00:03]} 3. Ne5 {[%emt 0:00:12]} d6 {[%emt 0:00:02]} 4. Nc4 {[%emt 0:00:09]} Nf6 {[%emt 0:00:12]} 5. Nc3 {[%emt 0:00:15]} Bf5 {[%emt 0:00:06]} 6. Bg5 {[%emt 0:00:18]} Nbd7 {[%emt 0:00:29]} 7. e3 {[%emt 0:00:09]} c6 {[%emt 0:00:20]} 8. Bd3 {[%emt 0:00:04]} Bxd3 {[%emt 0:00:14]} 9. Qxd3 {[%emt 0:00:03]} Qc7 {[%emt 0:00:40]} 10. Bxf6 {[%emt 0:00:23]} Nxf6 {[%emt 0:00:03]} 11. Ne4 {[%emt 0:00:10]} Nxe4 {[%emt 0:00:06]} 12. Qxe4 {[%emt 0:00:03]} d5 {[%emt 0:00:24]} 13. Qe5 {[%emt 0:00:03]} Qxe5 {[%emt 0:00:05]} 14. Nxe5 {[%emt 0:00:04]} Rg8 {[%emt 0:00:06]} 15. O-O {[%emt 0:00:26]} f6 {[%emt 0:00:03]} 16. Nd3 {[%emt 0:00:05]} e6 {[%emt 0:00:02]} 17. f3 {[%emt 0:00:08]} gxf3 {[%emt 0:00:07]} 18. Rxf3 {[%emt 0:00:04]} Be7 {[%emt 0:00:04]} 19. Rh3 {[%emt 0:00:09]} Rg7 {[%emt 0:00:03]} 20. Nf4 {[%emt 0:00:06]} Kd7 {[%emt 0:00:03]} 21. c3 {[%emt 0:00:08]} Rag8 {[%emt 0:00:03]} 22. g3 {[%emt 0:00:09]} a5 {[%emt 0:00:06]} 23. Rf1 {[%emt 0:00:09]} a4 {[%emt 0:00:08]} 24. Nh5 {[%emt 0:00:14]} Rf7 {[%emt 0:00:02]} 25. Nf4 {[%emt 0:00:07]} a3 {[%emt 0:00:04]} 26. b3 {[%emt 0:00:07]} Rg5 {[%emt 0:00:24]} 27. Nd3 {[%emt 0:00:17]} Bd6 {[%emt 0:00:15]} 28. Ne5+ {[%emt 0:00:28]} Bxe5 {[%emt 0:00:04]} 29. dxe5 {[%emt 0:00:06]} Rxe5 {[%emt 0:00:02]} 30. Rf3 {[%emt 0:00:08]} c5 {[%emt 0:00:21]} 31. Rh4 {[%emt 0:00:19]} b5 {[%emt 0:00:02]} 32. Rh6 {[%emt 0:00:06]} Ke7 {[%emt 0:00:02]} 33. Rh4 {[%emt 0:00:07]} Rg5 {[%emt 0:00:05]} 34. b4 {[%emt 0:00:13]} c4 {[%emt 0:00:02]} 35. Rff4 {[%emt 0:00:14]} e5 {[%emt 0:00:06]} 36. Rf3 {[%emt 0:00:13]} Ke6 {[%emt 0:00:02]} 37. Kf2 {[%emt 0:00:06]} f5 {[%emt 0:00:02]} 38. Rh6+ {[%emt 0:00:07]} Rg6 {[%emt 0:00:03]} 39. Rxg6+ {[%emt 0:00:08]} hxg6 {[%emt 0:00:02]} 40. h4 {[%emt 0:00:08]} Rd7 {[%emt 0:00:02]} 41. Ke2 {[%emt 0:00:11]} d4 {[%emt 0:00:03]} 42. exd4 {[%emt 0:00:08]} exd4 {[%emt 0:00:02]} 43. Kd2 {[%emt 0:00:20]} dxc3+ {[%emt 0:00:04]} 44. Kxc3 {[%emt 0:00:03]} Rd3+ {[%emt 0:00:14]} 45. Rxd3 {[%emt 0:00:06]} cxd3 {[%emt 0:00:02]} 46. Kxd3 {[%emt 0:00:02]} Kd5 {[%emt 0:00:01]} 47. Kc3 {[%emt 0:01:38]} Ke4 {[%emt 0:00:04]} 48. Kd2 {[%emt 0:00:05]} Kd4 {[%emt 0:00:03]} 49. Kc2 {[%emt 0:00:11]} Ke3 {[%emt 0:00:03]} 50. Kc3 {[%emt 0:00:03]} Ke4 {[%emt 0:00:04]} 51. Kb3 {[%emt 0:00:14]} f4 {[%emt 0:00:04]} 52. gxf4 {[%emt 0:00:03]} Kxf4 {[%emt 0:00:01]} 53. Kxa3 {[%emt 0:00:02]} Kg4 {[%emt 0:00:02]} 54. Kb3 {[%emt 0:00:06]} Kxh4 {[%emt 0:00:02]} 55. a4 {[%emt 0:00:02]} bxa4+ {[%emt 0:00:10]} 56. Kxa4 {[%emt 0:00:02]} g5 {[%emt 0:00:02]} 57. b5 {[%emt 0:00:01]} g4 {[%emt 0:00:03]} 58. b6 {[%emt 0:00:01]} g3 {[%emt 0:00:02]} 59. b7 {[%emt 0:00:01]} g2 {[%emt 0:00:02]} 60. b8=Q {[%emt 0:10:09]} g1=Q {[%emt 0:00:07]} 61. Qh8+ {[%emt 0:00:00]} Kg3 {[%emt 0:00:02]} 62. Qg8+ {[%emt 0:00:00]} Kf2 {[%emt 0:00:01]} 63. Qxg1+ {[%emt 0:00:00]} Kxg1 {[%emt 0:00:04]} 1/2-1/2

[Event "European Corporate Championship 2022"]
[Site "Rotterdam"]
[Date "2022.06.18"]
[Round "1.13"]
[White "Konijn, Bart"]
[Black "Giri, Anish"]
[Result "0-1"]
[ECO "B94"]
[WhiteElo "2224"]
[BlackElo "2761"]
[Annotator "TA"]
[PlyCount "72"]
[EventDate "2022.06.18"]
[EventType "team-tourn"]
[EventCountry "NED"]
[SourceTitle "playchess.com"]
[Source "ChessBase"]
[SourceQuality "1"]
[TimeControl "900+5"]

{[%evp 12,72,19,6,10,15,30,0,7,0,0,0,0,0,0,-78,-86,-91,-95,-108,-87,-98,0,0,57,42,69,-25,-14,-26,-15,-56,0,4,21,20,38,46,25,12,12,14,0,0,17,-11,38,-12,-7,-122,-122,-174,-149,-188,-179,-195,-194,-266,-263,-400,-275,-845,-837]} 1. e4 {[%emt 0:00:02]} c5 {[%emt 0:00:01]} 2. Nf3 {[%emt 0:00:02]} d6 {[%emt 0:00:02]} 3. d4 {[%emt 0:00:02]} cxd4 {[%emt 0:00:01]} 4. Nxd4 {[%emt 0:00:01]} Nf6 {[%emt 0:00:01]} 5. Nc3 {[%emt 0:00:01]} a6 {[%emt 0:00:01]} 6. Bg5 {[%emt 0:00:08]} Nbd7 {[%emt 0:00:01]} 7. Bc4 {[%emt 0:00:20] 7.Qe2 is the modern continuation.} Qb6 {[%emt 0:00:02] B94: Sicilian Najdorf: 6 Bg5 Nbd7.} 8. Bb3 {[%emt 0:01:32]} e6 {[%emt 0:00:07]} 9. Qd2 {[%emt 0:00:31]} Be7 {[%emt 0:00:04] The position is equal.} 10. O-O-O {[%emt 0:00:20]} Nc5 {[%emt 0:00:03]} 11. Rhe1 {[%emt 0:00:24][%cal Od4f5] And now Nf5! would win.} h6 {[%emt 0:00:51]} 12. Bh4 {[%emt 0:01:36][%cal Od4f5] Black must now prevent Nf5!} O-O {[%emt 0:00:31][%cal Of6e4] [#]} 13. Kb1 $146 {[%emt 0:00:42] [#]} (13. g3 $11) ({Predecessor:} 13. g3 Bd7 14. f4 Nxb3+ 15. axb3 Rfe8 16. e5 dxe5 17. fxe5 Nh7 18. Bxe7 Rxe7 19. Nf5 {1-0 (48) Dominguez Perez,L (2758)-Martinez Alcantara,J (2620) Chess.com INT 2020}) 13... Nfxe4 $1 $17 {[%emt 0:01:00]} 14. Nxe4 {[%emt 0:01:04]} Bxh4 {[%emt 0:00:04]} 15. Qf4 {[%emt 0:01:47][%csl LRd6,LRh4]} Nxe4 {[%emt 0:01:20]} 16. Qxh4 {[%emt 0:00:24]} Nf6 {[%emt 0:00:03]} (16... d5 $17 17. f3 Nc5) 17. g4 $11 {[%emt 0:00:20]} Nh7 {[%emt 0:03:16]} (17... e5 $11 18. Nf3 Qb4) 18. f4 {[%emt 0:00:44][%mdl 1024] White has compensation.} Qc5 {[%emt 0:01:18] Prevents g5.} 19. Qe7 {[%emt 0:00:44]} (19. Qg3 $14) 19... b5 {[%emt 0:00:10]} 20. Nf3 {[%emt 0:01:50][%cal Of3e5]} a5 {[%emt 0:00:46]} 21. a3 {[%emt 0:00:27]} (21. Qxd6 $2 Qxd6 22. Rxd6 a4 $19) ({Not} 21. Rxd6 $2 Ra7 22. Re5 Qf2 $19) 21... a4 {[%emt 0:01:01]} ({Black should play} 21... Qc6 $15 22. Rf1 a4) 22. Ba2 {[%emt 0:00:03]} b4 {[%emt 0:01:18]} 23. axb4 {[%emt 0:03:56]} ({Wrong is} 23. Rxd6 $2 bxa3 24. Rdxe6 Qb5 25. Qxa3 Bxe6 $19) 23... Qxb4 {[%emt 0:04:59]} 24. Qxd6 {[%emt 0:00:00]} Rb8 {[%emt 0:00:00][%csl Gb8][%cal Rb4b2] [#]} 25. Qd4 {[%emt 0:00:00]} a3 {[%emt 0:00:00][%cal Rb4b2]} 26. Bb3 $1 {[%emt 0:00:00]} axb2 $40 {[%emt 0:00:00][%mdl 128] Black attacks.} 27. Ne5 {[%emt 0:00:00]} Qa5 {[%emt 0:00:00][%csl Gb2][%cal Ra5a1]} 28. Qxb2 {[%emt 0:00:00] Nc6 is the strong threat.} (28. Kxb2 $5 {[%cal Re5c6]} Bb7 29. Nd7 $11) 28... Ra8 {[%emt 0:00:00]} (28... Rb5 $11) 29. Nc4 {[%emt 0:00:00]} (29. h4 $14) 29... Qa7 {[%emt 0:00:00]} 30. g5 {[%emt 0:00:00]} (30. Qd4 $11 {remains equal.} Qc7 31. Qe5) 30... hxg5 $17 {[%emt 0:00:00]} 31. fxg5 {[%emt 0:00:00]} (31. Rg1 $17) 31... Nxg5 $19 {[%emt 0:00:00] Hoping for ...Bb7.} 32. Rg1 {[%emt 0:00:00]} f6 {[%emt 0:00:00]} 33. Nd6 {[%emt 0:00:00]} Bd7 {[%emt 0:00:00] Threatens to win with ...Rfb8.} 34. h4 {[%emt 0:00:00]} (34. Rg3 $142) 34... Nf3 {[%emt 0:00:00][%csl LRg1,LRh4]} 35. Rg3 {[%emt 0:00:00]} (35. Rgf1 $142 Qe3 36. Nc4) 35... Qe3 {[%emt 0:00:00] aiming for ...Nd2+. The board is on fire.} 36. Rxg7+ $2 {[%emt 0:00:00]} (36. Rg2 Kh8 37. Nc4) 36... Kxg7 {[%emt 0:00:00] Weighted Error Value: White=0.42/Black=0.20 (precise)} 0-1

[Event "European Corporate Championship 2022"]
[Site "Rotterdam"]
[Date "2022.06.18"]
[Round "1.14"]
[White "Geldhof, Alexander"]
[Black "Schelvis, Richard"]
[Result "0-1"]
[ECO "B40"]
[WhiteElo "1833"]
[BlackElo "2157"]
[Annotator "TA"]
[PlyCount "54"]
[EventDate "2022.06.18"]
[EventType "team-tourn"]
[EventCountry "NED"]
[SourceTitle "playchess.com"]
[Source "ChessBase"]
[SourceQuality "1"]
[TimeControl "900+5"]

{[%evp 10,54,85,41,32,22,27,39,38,0,0,0,10,0,0,-7,14,0,16,-29,0,-5,0,-33,-28,-75,-47,-44,-8,-19,-2,-8,-25,-396,-384,-856,-856,-1050,-1047,-1035,-1041,-1001,-701,-1228,-741,-720,-723]} 1. e4 {[%emt 0:00:02]} c5 {[%emt 0:00:00]} 2. Nf3 {[%emt 0:00:05]} e6 {[%emt 0:00:02]} 3. d4 {[%emt 0:00:32]} cxd4 {[%emt 0:00:02]} 4. Nxd4 {[%emt 0:00:04]} Nf6 {[%emt 0:00:02]} 5. Nc3 {[%emt 0:00:25]} Qb6 {[%emt 0:00:03]} 6. Nb3 {[%emt 0:01:13] Threatens to win with e5.} Bb4 {[%emt 0:00:03] B40: Sicilian: 2...e6, Unusual lines.} 7. Bd3 {[%emt 0:00:48]} Bxc3+ {[%emt 0:00:03]} 8. bxc3 {[%emt 0:00:01] e5 is the strong threat.} d6 {[%emt 0:00:01] White is slightly better.} 9. O-O {[%emt 0:00:18]} O-O $40 {[%emt 0:00:03][%mdl 128] Black is up to no good.} 10. Bg5 {[%emt 0:00:13]} Nbd7 {[%emt 0:00:03]} 11. Rb1 {[%emt 0:00:23]} Qc7 {[%emt 0:00:03] [#]} 12. Qd2 $146 {[%emt 0:00:19]} ({Predecessor:} 12. c4 b6 13. Nd4 a6 14. Kh1 Bb7 15. Qe2 Kh8 16. f4 Nc5 17. e5 Nfe4 18. Nb3 Nc3 19. Qh5 Nxd3 20. cxd3 Nxb1 21. Qh4 Nc3 22. Bf6 Rg8 23. f5 gxf6 {0-1 (23) Gasperoni,S (2009)-Vivo,M (2165) Bratto 2006}) 12... b6 {[%emt 0:00:07]} 13. Nd4 {[%emt 0:00:16]} a6 {[%emt 0:00:04]} 14. Rb2 {[%emt 0:01:02]} Bb7 {[%emt 0:00:07]} 15. f3 {[%emt 0:00:08]} d5 {[%emt 0:00:19][%cal Rd5e4]} 16. exd5 {[%emt 0:00:30]} (16. e5 $5 Nxe5 17. Bxf6 gxf6 18. Qf4 $11) 16... Bxd5 {[%emt 0:00:29]} 17. Rfb1 {[%emt 0:00:30]} (17. Rb4 $11) 17... b5 {[%emt 0:00:09]} (17... Rfc8 $5 {[%cal Rc7c3]}) 18. a4 {[%emt 0:01:21]} bxa4 {[%emt 0:00:13] aiming for ...a3.} 19. Ra1 {[%emt 0:00:13]} e5 {[%emt 0:01:17]} 20. Nf5 {[%emt 0:00:46]} a3 {[%emt 0:00:17]} 21. Ne7+ $2 {[%emt 0:01:22][%mdl 8192] [#] This costs White the game.} (21. Rbb1 $11 {and White has nothing to worry.}) 21... Kh8 $19 {[%emt 0:00:03] Dancing on a razor blade.} 22. Nxd5 $2 {[%emt 0:00:01]} (22. Rbb1 Qc5+ 23. Qe3 Qxe7 24. c4) 22... axb2 {[%emt 0:00:06] Black is clearly winning.} 23. Nxc7 {[%emt 0:00:11]} bxa1=Q+ {[%emt 0:00:04]} 24. Qc1 {[%emt 0:00:07]} Qxc1+ {[%emt 0:00:08]} 25. Bxc1 {[%emt 0:00:01]} Rfc8 {[%emt 0:00:04]} 26. Nxa6 {[%emt 0:00:23]} Rxa6 {[%emt 0:00:03]} 27. Bxa6 {[%emt 0:00:20]} Ra8 {[%emt 0:00:03] Weighted Error Value: White=1.11/Black=0.43} 0-1

[Event "European Corporate Championship 2022"]
[Site "Rotterdam"]
[Date "2022.06.18"]
[Round "1.15"]
[White "Jap Tjoen San, Linda"]
[Black "Toledano Llinares, Juan A."]
[Result "1-0"]
[ECO "C56"]
[WhiteElo "2045"]
[BlackElo "2252"]
[Annotator "TA"]
[PlyCount "73"]
[EventDate "2022.06.18"]
[EventType "team-tourn"]
[EventCountry "NED"]
[SourceTitle "playchess.com"]
[Source "ChessBase"]
[SourceQuality "1"]
[TimeControl "900+5"]

{[%evp 15,73,116,109,112,118,-5,-19,-2,-2,-27,22,-213,48,41,47,19,23,0,73,45,87,68,86,93,119,130,157,120,136,127,131,58,150,90,85,7,538,100,102,99,97,39,33,39,27,30,29,-333,-339,-511,-521,-520,-454,-443,-441,-511,-504,-571,29998,29999]} 1. e4 {[%emt 0:00:03]} e5 {[%emt 0:00:01]} 2. Nf3 {[%emt 0:00:02]} Nc6 {[%emt 0:00:02]} 3. Bc4 {[%emt 0:00:03]} Bc5 {[%emt 0:00:02]} 4. c3 {[%emt 0:00:03][%cal Bc2c3,Bc3d4,Bd4d5][%mdl 32]} Bb6 {[%emt 0:00:31]} 5. O-O {[%emt 0:00:05]} Nf6 {[%emt 0:00:02]} 6. d4 {[%emt 0:00:51]} exd4 {[%emt 0:00:07]} 7. cxd4 {[%emt 0:00:02]} O-O {[%emt 0:00:20]} 8. d5 {[%emt 0:00:16]} Ne7 {[%emt 0:00:08]} 9. e5 {[%emt 0:00:51] C56: Two Knights: 4 d4 exd4 5 0-0 Nxe4.} Ng4 {[%emt 0:00:38] [#]} 10. Bg5 $146 {[%emt 0:03:03]} (10. h3 $16) ({Predecessor:} 10. h3 Nh6 11. d6 cxd6 12. exd6 Nef5 13. Bg5 Qe8 14. Re1 Ne3 15. fxe3 Nf5 16. Nd4 Nxd6 {1-0 (26) Llamas Martinez,P (1641)-Gomez Benitez,S (1223) Madrid 2018}) 10... d6 $11 {[%emt 0:01:25]} 11. exd6 {[%emt 0:00:27] The position is equal.} Qxd6 {[%emt 0:00:09]} 12. Nc3 {[%emt 0:00:08]} h6 {[%emt 0:00:30]} (12... Ng6 {was preferrable.}) 13. Bh4 $2 {[%emt 0:01:27]} (13. Nb5 $1 $11 Qc5 14. Bxe7 Qxe7 15. d6 cxd6 16. Qxd6) 13... Ng6 $2 {[%emt 0:00:05]} (13... Nf5 $19 14. h3 Nxh4 15. hxg4 Bxg4) 14. Bg3 $36 {[%emt 0:00:20][%mdl 2048] White has some pressure.} Qd8 {[%emt 0:00:49]} 15. Bb3 {[%emt 0:00:34]} (15. Qc2 {with more complications.} Ne7 16. Rad1 Nf5 17. Bf4) 15... Nf6 {[%emt 0:00:11][%cal Bg4f6,Bf6e8,Be8d6][%mdl 32]} 16. Qd3 {[%emt 0:00:08]} Kh8 {[%emt 0:00:49]} (16... Nh5 $11) 17. Rad1 {[%emt 0:00:03] Threatens to win with d6.} Ne8 {[%emt 0:00:30]} 18. Na4 {[%emt 0:00:47]} Nd6 {[%emt 0:00:14]} 19. Nxb6 {[%emt 0:00:05]} axb6 {[%emt 0:00:01] [#]} 20. Nd4 $1 {[%emt 0:00:07]} Ne7 {[%emt 0:01:14]} 21. a3 {[%emt 0:00:33]} (21. Bc2 g6 $16) 21... Bg4 {[%emt 0:00:14]} 22. f3 {[%emt 0:00:02]} Bh5 {[%emt 0:00:01]} 23. Rfe1 {[%emt 0:00:24]} ({Don't play} 23. Bc2 $6 Bg6 24. Qc3 Bxc2 25. Nxc2 Nef5 $11) (23. Be5 $16) 23... Re8 {[%emt 0:00:10]} (23... Bg6 $14 24. Qc3 Nef5) 24. Bh4 {[%emt 0:00:12] White is much more active.} (24. Bc2 $6 Bg6 25. Qb3 Bxc2 26. Nxc2 Nef5 $11) (24. Nb5 $142) 24... Qd7 $16 {[%emt 0:00:22]} 25. Re5 {[%emt 0:01:05] Prevents Nef5.} ({Reject} 25. Bc2 $6 Bg6 26. Qb3 Bxc2 27. Nxc2 Kg8 $11) (25. Bf2 $16) 25... Ng6 $2 {[%emt 0:00:25][%mdl 8192]} 26. Rxe8+ $2 {[%emt 0:00:05]} (26. Rxh5 $18 {is the precise move to win.} Nxh4 27. Rxh4) 26... Rxe8 {[%emt 0:00:01]} 27. Bg3 {[%emt 0:00:17]} Ne7 {[%emt 0:00:01]} 28. Ne2 {[%emt 0:00:23]} ({Much weaker is} 28. Bc2 $6 Bg6 29. Qb3 Bxc2 30. Nxc2 Kg8 $11) (28. Bxd6 $16 Qxd6 29. Nb5) 28... Bg6 $14 {[%emt 0:00:10]} 29. Qd2 {[%emt 0:00:08]} Nef5 {[%emt 0:00:39]} 30. Bf2 {[%emt 0:00:02]} Qb5 {[%emt 0:00:08][%csl LRb3,LRe2]} 31. Nf4 {[%emt 0:00:03][%mdl 8192]} Qxb3 $19 {[%emt 0:00:12]} 32. Nxg6+ {[%emt 0:00:04]} (32. Rc1 {was necessary.}) 32... fxg6 {[%emt 0:00:10]} 33. Rc1 {[%emt 0:00:02]} Rc8 {[%emt 0:01:07]} 34. Rc3 {[%emt 0:00:03]} Qb5 {[%emt 0:00:05]} 35. g4 {[%emt 0:00:03]} Ne7 {[%emt 0:00:08]} 36. Bd4 {[%emt 0:00:01] White threatens Qxh6+ and mate.} Nxd5 $4 {[%emt 0:00:22][%mdl 8192] [#]} (36... Kh7 $19 37. Be5 Nf7) 37. Qxh6+ $1 {[%emt 0:00:03] Weighted Error Value: White=0.84/Black=0.76} 1-0

[Event "European Corporate Championship 2022"]
[Site "Rotterdam"]
[Date "2022.06.18"]
[Round "1.17"]
[White "Garcia Ortega, Manuel"]
[Black "Afek, Yochanan"]
[Result "0-1"]
[ECO "A08"]
[WhiteElo "1725"]
[BlackElo "2210"]
[Annotator "TA"]
[PlyCount "47"]
[EventDate "2022.06.18"]
[EventType "team-tourn"]
[EventCountry "NED"]
[SourceTitle "playchess.com"]
[Source "ChessBase"]
[SourceQuality "1"]
[TimeControl "900+5"]

{[%evp 19,47,-19,-15,-91,-88,-85,-90,-99,-64,-139,-108,-175,-172,-267,-264,-287,-256,-252,-261,-258,-259,-545,-558,-550,-547,-588,-588,-561,-577,-1000]} 1. Nf3 {[%emt 0:00:05]} c5 {[%emt 0:00:09]} 2. g3 {[%emt 0:00:14]} g6 {[%emt 0:00:15]} 3. Bg2 {[%emt 0:00:02]} Bg7 {[%emt 0:00:01]} 4. c3 {[%emt 0:00:05]} e5 {[%emt 0:00:33]} 5. e4 {[%emt 0:00:11]} Nc6 {[%emt 0:00:16]} 6. a4 {[%emt 0:00:39]} Nf6 {[%emt 0:00:33][%cal Bg8f6,Bf6d5,Bd5b6][%mdl 32]} 7. d3 {[%emt 0:00:03]} O-O {[%emt 0:00:11]} 8. O-O {[%emt 0:00:05]} d5 {[%emt 0:00:20]} 9. exd5 {[%emt 0:00:29]} Nxd5 {[%emt 0:00:15]} 10. Nbd2 {[%emt 0:01:09]} h6 {[%emt 0:02:23] [#]} 11. Rb1 $146 {[%emt 0:01:57] A08: King's Indian Attack.} (11. Re1 $11) ({Predecessor:} 11. Nc4 Re8 12. Re1 b6 13. Qc2 Bb7 14. Bd2 Qd7 15. Rad1 Rad8 16. Bc1 Kh7 17. Ne3 Nxe3 18. Bxe3 f5 19. Bc1 Qf7 20. h4 {1-0 (36) Sinitsina,A (2115)-Loy,K (2268) Chess.com INT 2021}) 11... Be6 {[%emt 0:00:59]} 12. Nc4 {[%emt 0:00:31]} Qc7 {[%emt 0:00:47]} 13. Ne3 {[%emt 0:00:05][%cal Of3d4] Black is better.} Nb6 {[%emt 0:00:31] Black is more active.} 14. Bd2 {[%emt 0:01:00]} (14. b3 $15) 14... Rad8 $17 {[%emt 0:00:08]} 15. Qc2 {[%emt 0:00:19]} (15. b4 $17) 15... Qd7 $19 {[%emt 0:00:19]} 16. Ne1 {[%emt 0:00:05]} (16. Ra1 $142) 16... c4 {[%emt 0:00:23][%cal Rc4d3]} 17. b4 {[%emt 0:02:04]} cxb3 {[%emt 0:00:27]} 18. Rxb3 {[%emt 0:00:21]} Bxb3 {[%emt 0:00:11]} ({And not} 18... Nxa4 19. Rb1 Nc5 20. Bc1 $17) 19. Qxb3 {[%emt 0:00:02]} Na5 {[%emt 0:07:59][%csl LRa4,LRb3][%cal Bc6a5,Ba5b3,Bb3d2][%mdl 32]} 20. Qb5 {[%emt 0:00:32] [#]} (20. Qb2) 20... Qxb5 $1 {[%emt 0:00:00] Black is clearly winning.} 21. axb5 {[%emt 0:06:52]} Nb3 {[%emt 0:00:00]} 22. Nf3 {[%emt 0:00:00]} e4 {[%emt 0:00:00]} 23. dxe4 {[%emt 0:00:00]} Nxd2 {[%emt 0:00:00]} 24. Nd4 {[%emt 0:00:00] White did not feel at home in the position after the opening.  Weighted Error Value: White=0.66/Black=0.06 (flawless)} 0-1

[Event "European Corporate Championship 2022"]
[Site "Rotterdam"]
[Date "2022.06.18"]
[Round "1.20"]
[White "Breger, Baruch"]
[Black "Goulis, Panagiotis"]
[Result "1-0"]
[ECO "B21"]
[WhiteElo "1739"]
[BlackElo "1240"]
[Annotator "NA RC"]
[PlyCount "89"]
[EventDate "2022.06.18"]
[EventType "team-tourn"]
[EventCountry "NED"]
[SourceTitle "playchess.com"]
[Source "ChessBase"]
[SourceQuality "1"]
[TimeControl "900+5"]

1. e4 {[%emt 0:00:03]} c5 {[%emt 0:00:01]} 2. Nf3 {[%emt 0:00:02]} d6 {[%emt 0:00:02]} 3. c3 {[%emt 0:00:01]} Nf6 {[%emt 0:00:05]} 4. d4 {[%emt 0:00:12]} cxd4 {[%emt 0:00:12]} 5. cxd4 {[%emt 0:00:03]} Nxe4 {[%emt 0:00:16]} 6. d5 {[%emt 0:00:19]} Nf6 {[%emt 0:01:15]} 7. Nc3 {[%emt 0:00:03]} Nbd7 {[%emt 0:00:48]} 8. Bd3 {[%emt 0:00:33]} a6 {[%emt 0:00:44]} 9. O-O {[%emt 0:00:06]} g6 {[%emt 0:00:24]} 10. Bg5 {[%emt 0:00:32]} Bg7 {[%emt 0:00:05]} 11. Re1 {[%emt 0:00:27]} O-O {[%emt 0:00:16]} 12. Qd2 {[%emt 0:00:33]} b5 {[%emt 0:00:43]} 13. a3 {[%emt 0:00:09]} Bb7 {[%emt 0:00:06]} 14. Bc2 {[%emt 0:00:44]} Rc8 {[%emt 0:00:36]} 15. h3 {[%emt 0:01:42]} Re8 {[%emt 0:00:25]} 16. Rad1 {[%emt 0:00:58]} Nb6 {[%emt 0:01:11]} 17. Bb3 {[%emt 0:01:49]} Rc5 {[%emt 0:04:20]} 18. Be3 {[%emt 0:01:06]} Nc4 {[%emt 0:01:40]} 19. Qe2 {[%emt 0:00:29]} Nxe3 {[%emt 0:00:10]} 20. Qxe3 {[%emt 0:00:41]} Qd7 {[%emt 0:00:50]} 21. Rd4 {[%emt 0:01:54]} Nxd5 {[%emt 0:01:04]} 22. Rxd5 {[%emt 0:00:03]} Bxd5 {[%emt 0:00:04]} 23. Nxd5 {[%emt 0:00:04]} e6 {[%emt 0:00:36]} 24. Nc3 {[%emt 0:00:29]} Bxc3 {[%emt 0:00:37]} 25. bxc3 {[%emt 0:00:03]} Rec8 {[%emt 0:00:12]} 26. Rc1 {[%emt 0:00:13]} Qc7 {[%emt 0:00:02]} 27. Qf4 {[%emt 0:01:00]} Rxc3 {[%emt 0:00:17]} 28. Rxc3 {[%emt 0:00:02]} Qxc3 {[%emt 0:00:03]} 29. Ng5 {[%emt 0:00:20]} Qc1+ {[%emt 0:00:07]} 30. Qxc1 {[%emt 0:00:03]} Rxc1+ 31. Kh2 {[%emt 0:00:10]} Rc3 {[%emt 0:00:09]} 32. Bd1 {[%emt 0:00:13]} Rxa3 {[%emt 0:00:02]} 33. Bf3 {[%emt 0:00:08]} Rxf3 {[%emt 0:00:19]} 34. gxf3 {[%emt 0:00:02]} a5 {[%emt 0:00:14]} 35. Ne4 a4 {[%emt 0:00:00]} 36. Nc3 {[%emt 0:00:06]} d5 {[%emt 0:00:00]} 37. Nxb5 {[%emt 0:00:03]} Kg7 {[%emt 0:00:03]} 38. Kg1 {[%emt 0:00:03]} Kf6 {[%emt 0:00:06]} 39. Kf1 {[%emt 0:00:00]} Ke5 {[%emt 0:00:04]} 40. Ke2 {[%emt 0:00:04]} d4 {[%emt 0:00:05]} 41. Kd3 {[%emt 0:00:03]} f5 {[%emt 0:00:10]} 42. Nxd4 {[%emt 0:00:03]} Kd5 {[%emt 0:00:04]} 43. Ne2 {[%emt 0:00:09]} e5 {[%emt 0:00:06]} 44. Kc3 {[%emt 0:00:02]} e4 {[%emt 0:00:12]} 45. f4 {[%emt 0:00:05]} 1-0